bitfinex/quotes_SOLUSD_20260113
["timestamp","ask_amount","ask_price","bid_price","bid_amount"]
[1768346223016,6.80601318,146.93,146.85,7.21346393]
[1768346223017,8.48023435,146.89,146.85,7.21346393]
[1768346223309,7.77941609,146.88,146.84,12.38]
[1768346225106,7.51994682,146.9,146.85,8.21350004]
[1768346225297,104.9123051,146.92,146.87,8.21350004]
[1768346225492,104.9123051,146.92,146.88,8.21350004]
[1768346225701,104.9123051,146.92,146.87,8.21350004]
[1768346225702,111.71884676,146.92,146.87,8.21350004]
[1768346226006,0.7123051,146.91,146.87,0.43408395]
[1768346226208,0.7123051,146.91,146.88,7.77941609]
[1768346227510,0.7123051,146.91,146.87,12.21975553]
[1768346228190,0.7123051,146.91,146.88,4.97698726]
[1768346228389,7.51932371,146.91,146.86,7.24309125]
[1768346228702,111.71874585,146.92,146.88,4.97698726]
[1768346229210,111.71874585,146.92,146.87,11.78561451]
[1768346229515,104.9123051,146.92,146.88,4.97698726]
[1768346229689,0.7123051,146.92,146.88,4.97698726]
[1768346230090,0.7123051,146.92,146.89,4.97698726]
[1768346230332,0.7123051,146.92,146.88,4.97698726]
[1768346230609,0.7123051,146.92,146.88,5.41107121]
[1768346231309,0.7123051,146.92,146.89,4.97698726]
[1768346232116,0.7123051,146.92,146.88,4.97698726]
[1768346232288,0.7123051,146.92,146.88,11.78525184]
[1768346232809,0.7123051,146.92,146.88,12.21933579]
[1768346233511,7.5180055,146.94,146.9,4.97698726]
[1768346233807,5.7972752,146.93,146.89,4.97698726]
[1768346234005,5.7972752,146.93,146.89,5.41107121]
[1768346234006,0.7123051,146.93,146.89,5.41107121]
[1768346234210,0.7123051,146.93,146.88,6.80826079]
[1768346234211,0.7123051,146.95,146.91,5.41107121]
[1768346234391,5.08471149,146.94,146.91,5.41107121]
[1768346234594,0.7123051,146.95,146.91,5.41107121]
[1768346234911,5.08512852,146.94,146.91,5.41107121]
[1768346235085,0.7123051,146.95,146.91,5.41107121]
[1768346235289,5.08512852,146.94,146.91,5.41107121]
[1768346235492,7.51735645,146.95,146.91,5.41107121]
[1768346235691,4.97698726,146.97,146.91,5.41107121]
[1768346235692,0.7123051,146.97,146.93,4.97698726]
[1768346235892,11.88969506,146.96,146.92,5.41107121]
[1768346236092,5.08507807,146.95,146.92,5.41107121]
[1768346236407,7.51692209,146.96,146.92,5.41107121]
[1768346237295,7.51692209,146.96,146.93,4.97698726]
[1768346237812,0.7123051,146.96,146.93,4.97698726]
[1768346238613,0.71142491,146.97,146.94,4.97698726]
[1768346238814,0.71142491,146.98,146.94,4.97698726]
[1768346239715,0.71142491,146.98,146.95,4.97698726]
[1768346240396,11.98010192,147.0,146.97,4.97698726]
[1768346240397,0.91142491,147.0,146.97,4.97698726]
[1768346240614,0.91142491,147.0,146.96,4.97698726]
[1768346240822,0.71142491,146.99,146.95,4.97698726]
[1768346242715,0.71142491,146.99,146.92,0.43408395]
[1768346242716,0.71142491,146.98,146.92,0.43408395]
[1768346242916,0.71142491,146.97,146.93,4.97698726]
[1768346243222,0.71142491,146.97,146.94,4.97698726]
[1768346243423,0.71142491,146.99,146.95,4.97698726]
[1768346243810,0.71142491,146.98,146.95,4.97698726]
[1768346244115,0.71142491,146.98,146.94,4.97698726]
[1768346244618,0.71142491,146.98,146.94,5.41107121]
[1768346245422,0.71142491,146.97,146.94,4.97698726]
[1768346245623,0.71142491,146.97,146.93,11.78273785]
[1768346245801,0.71142491,146.98,146.95,4.97698726]
[1768346246515,0.71142491,146.98,146.94,5.41107121]
[1768346247116,7.0029134,147.0,146.95,4.97698726]
[1768346247316,7.71433831,147.0,146.95,5.41107121]
[1768346247524,7.71433831,147.0,146.96,4.97698726]
[1768346247525,0.91142491,147.0,146.96,4.97698726]
[1768346247823,7.71416213,147.0,146.95,12.21583298]
[1768346248020,0.71142491,146.99,146.95,5.41107121]
[1768346248222,0.71142491,146.99,146.94,7.2394611]
[1768346248417,0.71142491,146.99,146.95,4.97698726]
[1768346248624,0.71142491,146.99,146.94,5.41107121]
[1768346248925,0.91142491,147.0,146.95,12.21581492]
[1768346249105,0.91142491,147.0,146.96,5.41107121]
[1768346249303,0.91142491,147.0,146.97,4.97698726]
[1768346250324,0.2,147.0,146.97,5.41107121]
[1768346250834,0.2,147.0,146.97,4.97698726]
[1768346251430,0.71142491,147.04,146.99,4.97698726]
[1768346251602,7.71144584,147.06,147.02,4.97698726]
[1768346251806,7.71144584,147.06,146.98,17.00911688]
[1768346251807,0.2,147.06,147.0,4.97698726]
[1768346252116,0.71142491,147.04,146.98,6.6801107]
[1768346252302,0.71142491,147.04,146.99,4.97698726]
[1768346252500,0.71142491,147.04,147.0,4.97698726]
[1768346253528,0.2,147.05,147.03,4.97698726]
[1768346253732,0.91142491,147.05,147.02,4.97698726]
[1768346254110,7.71185005,147.05,147.01,4.97698726]
[1768346254918,0.71142491,147.04,146.99,6.80310694]
[1768346255135,0.71142491,147.04,147.0,4.97698726]
[1768346256428,7.67928553,147.05,147.01,4.97698726]
[1768346257430,7.67928553,147.05,147.0,4.97698726]
[1768346258123,7.67928553,147.05,146.98,12.38]
[1768346258124,0.67886039,147.03,146.98,19.18348046]
[1768346258341,0.67886039,147.03,147.0,4.97698726]
[1768346258524,0.67886039,147.03,146.97,4.97698726]
[1768346258525,0.67886039,147.02,146.97,4.97698726]
[1768346258837,0.46113413,147.01,146.96,4.97698726]
[1768346259140,4.97698726,147.0,146.95,12.38]
[1768346259722,4.97698726,147.0,146.94,0.21772626]
[1768346260238,6.80318389,146.99,146.94,0.21772626]
[1768346260930,0.67886039,146.97,146.92,17.57471352]
[1768346261127,0.67886039,146.97,146.92,19.40406876]
[1768346261723,5.65584765,146.97,146.92,19.40406876]
[1768346261918,0.67886039,146.96,146.92,12.38]
[1768346262315,0.67886039,146.95,146.9,6.80718235]
[1768346262635,0.67886039,146.95,146.9,7.02490861]
[1768346263142,0.67886039,146.95,146.9,11.78416961]
[1768346263527,7.48399839,146.95,146.9,5.19471352]
[1768346263735,7.48399839,146.95,146.9,0.21772626]
[1768346264243,7.45399839,146.95,146.9,0.21772626]
[1768346264450,12.43098565,146.95,146.9,0.21772626]
[1768346264625,11.78212526,146.95,146.89,24.16475077]
[1768346264833,11.78212526,146.95,146.89,17.35698726]
[1768346265022,11.78212526,146.95,146.89,17.60471352]
[1768346265561,11.78212526,146.95,146.89,24.41242496]
[1768346266152,12.46098565,146.95,146.89,24.41242496]
[1768346266522,7.48399839,146.95,146.89,24.41242496]
[1768346266850,7.48399839,146.95,146.9,0.24772626]
[1768346267025,7.48399839,146.95,146.9,12.03198174]
[1768346267524,7.48399839,146.95,146.9,5.22471352]
[1768346268042,7.48399839,146.95,146.9,12.03200158]
[1768346268425,7.48394174,146.95,146.9,5.22471352]
[1768346270338,0.67886039,146.94,146.9,0.24772626]
[1768346270724,0.64886039,146.94,146.9,0.24772626]
[1768346271545,6.80572613,146.94,146.89,12.38]
[1768346271739,11.78271339,146.94,146.89,12.38]
[1768346271946,28.79646049,146.94,146.89,12.38]
[1768346272545,28.79646049,146.94,146.87,5.25471352]
[1768346272845,0.67886039,146.92,146.87,5.25471352]
[1768346273141,0.67886039,146.92,146.87,12.06333088]
[1768346274050,0.67886039,146.92,146.88,6.8081397]
[1768346274251,0.67886039,146.92,146.88,0.27772626]
[1768346274427,0.67886039,146.92,146.87,5.25471352]
[1768346274626,0.67886039,146.91,146.87,4.97698726]
[1768346274945,0.67886039,146.91,146.87,5.25471352]
[1768346275343,0.67886039,146.91,146.86,24.44375607]
[1768346275849,0.67886039,146.91,146.86,19.46676881]
[1768346276051,0.67886039,146.91,146.86,24.44375607]
[1768346276350,0.67886039,146.91,146.86,17.63471352]
[1768346276549,0.67886039,146.9,146.86,17.35698726]
[1768346276734,0.67886039,146.9,146.86,19.18916753]
[1768346276940,0.67886039,146.9,146.86,24.44388105]
[1768346277166,0.64886036,146.9,146.86,24.44388105]
[1768346279559,0.67886039,146.91,146.86,24.44388105]
[1768346280045,0.67886039,146.91,146.86,17.63471352]
[1768346280243,0.67886039,146.89,146.86,12.38]
[1768346280445,0.67886039,146.89,146.84,0.30772629]
[1768346280446,0.67886039,146.89,146.84,5.28471355]
[1768346281058,0.67886039,146.88,146.83,12.38]
[1768346281257,0.67886039,146.88,146.79,22.10766939]
[1768346281258,0.67886039,146.87,146.8,7.11966762]
[1768346281462,0.67886039,146.85,146.8,12.38]
[1768346281754,0.67886039,146.84,146.8,17.35698726]
[1768346282449,7.48884239,146.85,146.8,17.66471355]
[1768346282759,0.67886039,146.84,146.8,24.4765826]
[1768346283459,0.67886039,146.84,146.8,12.68772629]
[1768346284043,0.67886039,146.84,146.8,12.38]
[1768346284246,0.67886039,146.84,146.8,19.1919675]
[1768346284752,7.48914917,146.84,146.8,12.38]
[1768346285332,0.72156478,146.83,146.8,12.38]
[1768346285538,0.72156478,146.83,146.79,0.1]
[1768346285848,0.72156478,146.82,146.79,0.1]
[1768346286051,0.72156478,146.81,146.79,0.1]
[1768346286251,0.72156478,146.8,146.79,1e-08]
[1768346287463,6.81077356,146.83,146.79,7.78586957]
[1768346287763,0.72156478,146.82,146.79,1e-08]
[1768346288255,0.72156478,146.8,146.79,1e-08]
[1768346290448,12.4,146.85,146.79,7.78586957]
[1768346290449,7.53275708,146.82,146.79,7.78586957]
[1768346290648,0.72156478,146.82,146.79,7.78586957]
[1768346291559,7.53274418,146.82,146.79,7.78586957]
[1768346293466,0.72156478,146.81,146.76,8.55985317]
[1768346293761,0.71434913,146.8,146.76,0.1]
[1768346293947,0.72149262,146.79,146.76,0.1]
[1768346294153,0.72149262,146.79,146.76,1e-08]
[1768346295050,7.78586956,146.8,146.72,0.1]
[1768346295051,8.50029013,146.77,146.72,0.1]
[1768346295254,0.71449058,146.75,146.72,0.1]
[1768346295455,6.81356641,146.77,146.72,7.88586956]
[1768346295764,6.81356641,146.77,146.72,0.1]
[1768346295959,7.53505903,146.77,146.72,0.1]
[1768346296268,7.53505903,146.77,146.72,7.88586956]
[1768346296762,0.71442057,146.76,146.72,7.88586956]
[1768346297371,7.49355317,146.77,146.72,8.58987114]
[1768346297558,0.67998676,146.75,146.72,0.1]
[1768346297867,0.67998676,146.72,146.69,0.1]
[1768346298055,8.46585632,146.74,146.69,0.80400158]
[1768346298250,0.67998676,146.74,146.69,0.80400158]
[1768346298455,8.46585632,146.74,146.69,0.80400158]
[1768346298669,0.65651137,146.73,146.69,0.1]
[1768346298972,0.64975201,146.72,146.69,0.1]
[1768346299151,0.61975202,146.72,146.69,0.1]
[1768346299667,6.81616795,146.71,146.69,0.1]
[1768346300659,14.60203751,146.71,146.69,1e-08]
[1768346300855,7.78586956,146.7,146.69,1e-08]
[1768346301064,15.28202427,146.71,146.69,1e-08]
[1768346302855,0.59711139,146.7,146.69,1e-08]
[1768346303464,8.38298095,146.7,146.69,1e-08]
[1768346303853,8.38298095,146.7,146.68,1e-08]
[1768346304056,0.59793186,146.68,146.65,0.1]
[1768346305378,7.41462257,146.69,146.65,0.1]
[1768346306257,7.41462257,146.69,146.48,0.70400158]
[1768346306258,32.82,146.68,146.48,0.70400158]
[1768346306570,32.82,146.68,146.26,11.35277607]
[1768346306571,3.53643271,146.61,146.58,0.70400158]
[1768346306787,3.53643271,146.61,146.59,12.4]
[1768346307368,8.46585632,146.6,146.54,0.70400158]
[1768346307578,8.46585632,146.6,146.55,12.4]
[1768346307775,0.67998676,146.59,146.55,12.4]
[1768346308472,8.46585632,146.59,146.55,12.4]
[1768346308675,0.67998676,146.59,146.55,12.4]
[1768346308873,21.2684623,146.61,146.55,12.4]
[1768346309096,6.8213605,146.6,146.5,6.6801107]
[1768346309268,6.8213605,146.6,146.45,42.92735718]
[1768346309269,0.56584241,146.46,146.38,0.70400158]
[1768346309459,7.78586956,146.4,146.38,0.70400158]
[1768346309659,0.56131402,146.44,146.39,12.4]
[1768346309884,7.78586956,146.4,146.39,12.4]
[1768346311361,20.7795936,146.41,146.39,12.4]
[1768346313360,20.7795936,146.42,146.39,13.10400158]
[1768346313759,6.82928922,146.43,146.4,12.4]
[1768346313969,20.7795936,146.41,146.39,12.4]
[1768346314175,21.34543601,146.4,146.33,0.70400158]
[1768346314375,20.7795936,146.35,146.31,0.70400158]
[1768346314679,20.7795936,146.33,146.32,12.4]
[1768346315086,20.7795936,146.34,146.32,12.4]
[1768346315463,23.91200382,146.37,146.32,12.4]
[1768346315464,20.7795936,146.33,146.32,12.4]
[1768346315688,20.7795936,146.33,146.28,0.69432895]
[1768346315983,0.57517689,146.36,146.29,13.09432895]
[1768346315984,20.7795936,146.34,146.29,13.09432895]
[1768346316590,20.7795936,146.34,146.27,13.09432895]
[1768346316591,20.7795936,146.32,146.27,13.09432895]
[1768346316761,20.7795936,146.31,146.27,0.69432895]
[1768346316961,20.7795936,146.31,146.27,13.11432895]
[1768346317184,0.57046274,146.34,146.28,0.69432895]
[1768346317381,22.42752157,146.38,146.29,0.69432895]
[1768346317570,20.7795936,146.36,146.29,0.69432895]
[1768346317772,20.7795936,146.34,146.29,0.69432895]
[1768346317986,20.7795936,146.35,146.29,0.69432895]
[1768346318684,6.93104038,146.37,146.29,0.69432895]
[1768346318870,6.93104038,146.37,146.28,33.1995936]
[1768346318871,20.7795936,146.38,146.31,0.69432895]
[1768346319187,20.7795936,146.38,146.33,0.69432895]
[1768346319784,20.7795936,146.37,146.33,0.69432895]
[1768346320180,10.79851974,146.39,146.33,0.69432895]
[1768346320181,20.7795936,146.35,146.33,0.69432895]
[1768346320566,0.099,146.37,146.31,12.42]
[1768346320878,0.099,146.37,146.31,13.11432895]
[1768346321189,20.7795936,146.33,146.31,19.25474262]
[1768346322078,20.7795936,146.34,146.31,19.25474262]
[1768346323198,20.7795936,146.34,146.31,12.42]
[1768346323413,20.7795936,146.34,146.31,19.25463941]
[1768346323775,20.7795936,146.34,146.31,12.42]
[1768346323996,20.7795936,146.34,146.31,19.25475915]
[1768346324369,0.67576456,146.38,146.32,0.14501324]
[1768346324893,0.67576456,146.42,146.35,0.14501324]
[1768346325097,0.67576456,146.42,146.36,12.56501324]
[1768346325297,0.67576456,146.42,146.39,20.7795936]
[1768346325482,0.67576456,146.42,146.4,12.42]
[1768346326294,6.6801107,146.49,146.38,20.7795936]
[1768346326295,0.67576456,146.41,146.38,20.7795936]
[1768346326600,0.67576456,146.41,146.39,12.42]
[1768346326807,0.67576456,146.41,146.4,12.42]
[1768346327012,20.9795936,146.5,146.4,33.1995936]
[1768346327013,0.67576456,146.44,146.4,33.1995936]
[1768346327306,0.67576456,146.44,146.41,20.7795936]
[1768346327478,0.67576456,146.44,146.4,33.1995936]
[1768346327781,0.67576456,146.44,146.41,20.7795936]
[1768346328577,0.67576456,146.43,146.4,20.7795936]
[1768346328808,0.67576456,146.43,146.41,11.695]
[1768346329023,0.67576456,146.43,146.42,12.42]
[1768346329807,0.67576456,146.43,146.4,20.7795936]
[1768346330012,0.67576456,146.43,146.41,12.42]
[1768346330190,0.67576456,146.43,146.42,12.42]
[1768346330395,0.67576456,146.43,146.4,12.42]
[1768346330815,0.67576456,146.43,146.36,6.83243891]
[1768346330816,0.57998676,146.42,146.39,20.7795936]
[1768346330997,0.47998676,146.44,146.41,20.7795936]
[1768346331196,0.47998676,146.44,146.41,33.1995936]
[1768346331410,7.30874463,146.44,146.41,12.42]
[1768346331809,6.82875787,146.44,146.41,12.42]
[1768346333014,6.82826903,146.45,146.41,12.42]
[1768346335605,6.82773219,146.47,146.42,21.47392255]
[1768346335802,0.47998676,146.48,146.43,0.69432895]
[1768346336001,7.30689663,146.48,146.44,12.42]
[1768346336917,0.2,146.5,146.45,0.69432895]
[1768346337113,0.2,146.5,146.49,20.7795936]
[1768346337310,0.47617689,146.53,146.49,20.7795936]
[1768346337510,0.47617689,146.53,146.49,12.42]
[1768346337717,0.47617689,146.53,146.49,20.7795936]
[1768346338019,0.37617689,146.52,146.5,12.32]
[1768346338603,0.37617689,146.52,146.47,21.47392255]
[1768346338802,0.37617689,146.52,146.5,12.42]
[1768346339606,0.37617689,146.52,146.45,0.69432895]
[1768346339812,6.82593856,146.5,146.46,12.42]
[1768346340122,6.92493856,146.5,146.44,20.7795936]
[1768346340317,27.70453216,146.5,146.45,12.42]
[1768346340518,6.92493856,146.5,146.45,12.42]
[1768346340705,6.92493856,146.5,146.46,12.42]
[1768346341212,6.92493856,146.5,146.44,28.30256045]
[1768346341422,6.92493856,146.5,146.47,12.42]
[1768346342322,0.10075405,146.48,146.42,0.69432895]
[1768346342510,0.27266861,146.47,146.43,12.42]
[1768346343294,7.10182671,146.51,146.45,0.69432895]
[1768346343495,34.09267898,146.66,146.46,33.89392255]
[1768346343496,0.27617689,146.53,146.46,33.89392255]
[1768346343726,20.7795936,146.52,146.46,33.89392255]
[1768346344104,20.8785936,146.52,146.46,33.89392255]
[1768346344305,6.82547266,146.51,146.46,33.89392255]
[1768346344518,6.82547266,146.51,146.46,21.47392255]
[1768346344706,6.82547266,146.51,146.47,12.42]
[1768346344914,27.70376867,146.52,146.47,12.42]
[1768346345125,6.92417507,146.52,146.47,12.42]
[1768346345620,27.70376867,146.52,146.47,12.42]
[1768346346518,6.92417507,146.52,146.47,12.42]
[1768346346718,6.92417507,146.52,146.47,33.1995936]
[1768346346929,6.92417507,146.52,146.47,40.02692139]
[1768346347426,6.92417507,146.52,146.47,32.01464142]
[1768346347604,6.92417507,146.52,146.47,12.76731363]
[1768346347917,6.92417507,146.52,146.48,12.42]
[1768346348225,6.82471174,146.53,146.48,25.90577511]
[1768346348530,6.82471174,146.53,146.48,32.73241869]
[1768346348925,6.82268356,146.57,146.51,13.48577511]
[1768346349225,6.82268356,146.57,146.52,12.42]
[1768346349427,6.82268356,146.57,146.48,6.82664358]
[1768346349428,13.04171875,146.56,146.5,12.76731363]
[1768346349631,13.04171875,146.56,146.51,12.42]
[1768346349927,13.04171875,146.56,146.52,12.42]
[1768346350134,13.04171875,146.56,146.5,13.48577511]
[1768346350302,13.04171875,146.56,146.51,12.42]
[1768346350722,6.82360968,146.55,146.5,20.31169758]
[1768346351124,6.82360968,146.55,146.51,12.42]
[1768346351624,19.86491424,146.56,146.51,12.42]
[1768346351924,12.76731363,146.55,146.51,12.42]
[1768346352130,19.86491424,146.56,146.51,12.42]
[1768346352929,19.86491424,146.56,146.52,12.42]
[1768346353316,7.09760061,146.56,146.52,12.42]
[1768346353505,19.59018435,146.57,146.52,13.13846148]
[1768346353707,6.82287072,146.57,146.52,25.90577511]
[1768346353907,62.2,146.56,146.52,25.90577511]
[1768346354107,62.2,146.56,146.52,13.13846148]
[1768346354625,62.2,146.56,146.52,25.90577511]
[1768346355026,69.02321706,146.56,146.53,12.42]
[1768346355917,69.02321706,146.56,146.54,12.42]
[1768346356118,69.02321706,146.56,146.54,12.36319665]
[1768346357331,62.2,146.56,146.54,12.36319665]
[1768346358306,0.27440512,146.56,146.5,0.65747561]
[1768346358507,5.00165792,146.53,146.48,7.48408172]
[1768346358732,5.00165792,146.53,146.49,12.42]
[1768346358934,5.00165792,146.52,146.5,12.42]
[1768346359120,5.00165792,146.53,146.5,13.07747561]
[1768346359434,11.82600366,146.54,146.5,13.07747561]
[1768346360331,5.00165792,146.58,146.51,0.65747561]
[1768346360332,0.27617689,146.57,146.51,0.65747561]
[1768346360512,12.10070597,146.57,146.52,0.65747561]
[1768346360712,12.10070597,146.57,146.53,12.42]
[1768346361418,7.09904805,146.57,146.53,12.42]
[1768346361611,12.10070597,146.57,146.53,12.42]
[1768346362634,5.00165792,146.56,146.53,12.42]
[1768346362934,12.10070597,146.57,146.53,12.42]
[1768346364131,12.10070597,146.57,146.52,0.65747561]
[1768346364338,12.10070597,146.57,146.53,12.42]
[1768346364731,7.09904805,146.57,146.53,12.42]
[1768346364923,6.82287116,146.57,146.53,0.65747561]
[1768346365125,11.82452908,146.57,146.54,12.42]
[1768346365335,11.82452908,146.57,146.55,12.42]
[1768346365633,6.92133218,146.58,146.55,12.42]
[1768346366137,6.82233218,146.58,146.55,12.42]
[1768346366337,11.8239901,146.58,146.55,12.42]
[1768346366512,0.27440512,146.57,146.56,12.42]
[1768346366713,5.27606304,146.57,146.55,12.42]
[1768346366918,5.17606304,146.56,146.53,12.42]
[1768346367117,24.05227011,146.58,146.53,12.42]
[1768346367336,29.05392803,146.58,146.53,13.07747561]
[1768346367719,24.05227011,146.58,146.53,13.07747561]
[1768346368037,5.10065792,146.57,146.53,12.42]
[1768346368336,0.17365106,146.56,146.53,12.42]
[1768346368509,0.09974651,146.55,146.52,12.42]
[1768346370343,0.17291202,146.54,146.48,0.65747561]
[1768346370637,0.17218769,146.52,146.48,5.65913353]
[1768346370837,62.2,146.51,146.48,5.65913353]
[1768346372226,62.2,146.5,146.48,0.65747561]
[1768346373320,62.2,146.49,146.48,0.65747561]
[1768346377840,12.42,146.56,146.49,0.71440635]
[1768346377841,6.99818078,146.55,146.49,0.71440635]
[1768346378144,6.99818078,146.55,146.48,11.82848916]
[1768346378145,6.82377566,146.55,146.51,4.46611589]
[1768346378332,6.99742672,146.55,146.49,0.71440635]
[1768346378639,0.09974651,146.54,146.51,3.75170954]
[1768346378845,0.09974651,146.54,146.49,0.71440635]
[1768346379038,6.92405086,146.54,146.51,3.75170954]
[1768346379429,6.92405086,146.54,146.49,0.71440635]
[1768346379430,6.92405086,146.54,146.5,3.75170954]
[1768346379629,6.82366449,146.55,146.51,3.75170954]
[1768346379828,6.92230346,146.56,146.51,4.46611589]
[1768346380850,6.92230346,146.56,146.51,16.88611589]
[1768346381038,6.92230346,146.56,146.52,0.71440635]
[1768346381341,10.94201582,146.56,146.52,0.71440635]
[1768346384951,10.94201582,146.56,146.52,12.42]
[1768346386332,6.92230346,146.56,146.52,12.42]
[1768346387651,6.92230346,146.56,146.52,0.71440635]
[1768346387826,6.82330346,146.56,146.53,12.42]
[1768346388228,6.99695452,146.56,146.53,12.42]
[1768346388463,6.82330346,146.56,146.53,12.42]
[1768346388656,6.82330346,146.56,146.53,13.13440635]
[1768346389063,6.82330346,146.56,146.53,12.42]
[1768346390758,0.099,146.6,146.49,0.71440635]
[1768346390945,4.11945887,146.58,146.53,4.73411871]
[1768346391146,4.01971236,146.57,146.54,12.42]
[1768346391847,4.12019052,146.56,146.51,0.71440635]
[1768346392050,4.12019052,146.56,146.52,12.42]
[1768346392630,10.84401131,146.54,146.5,0.71440635]
[1768346392833,10.84401131,146.54,146.51,12.42]
[1768346393062,6.82429895,146.54,146.51,12.42]
[1768346393857,6.82429895,146.54,146.51,13.13440635]
[1768346394231,6.82429895,146.54,146.51,12.42]
[1768346394960,6.82372343,146.55,146.52,0.71440635]
[1768346395455,6.82372343,146.55,146.51,12.42]
[1768346395456,6.99737449,146.55,146.51,17.15411871]
[1768346396461,6.99737449,146.55,146.51,13.13440635]
[1768346397056,4.01971236,146.54,146.51,13.13440635]
[1768346397232,4.01971236,146.54,146.51,0.71440635]
[1768346397433,4.01971236,146.54,146.52,12.42]
[1768346398235,4.01971236,146.54,146.52,13.13440635]
[1768346399654,4.01971236,146.54,146.52,0.71440635]
[1768346399957,4.01971236,146.54,146.53,12.42]
[1768346400163,6.82372343,146.55,146.52,0.71440635]
[1768346400359,6.82407533,146.54,146.53,12.42]
[1768346400539,10.84378769,146.54,146.52,12.42]
[1768346400859,4.01971236,146.53,146.52,12.42]
[1768346401160,4.01971236,146.54,146.52,12.42]
[1768346401746,4.01971236,146.55,146.52,13.13440635]
[1768346402061,25.2,146.57,146.54,0.71440635]
[1768346402241,29.21971236,146.57,146.54,0.71440635]
[1768346402562,36.04241076,146.57,146.54,0.71440635]
[1768346402738,29.21971236,146.57,146.54,0.71440635]
[1768346403766,25.2,146.57,146.54,0.71440635]
[1768346403967,29.21971236,146.57,146.54,0.71440635]
[1768346404159,25.2,146.57,146.54,0.71440635]
[1768346404348,29.21971236,146.57,146.54,0.71440635]
[1768346405567,25.2,146.56,146.54,0.71440635]
[1768346406766,25.2,146.55,146.54,0.71440635]
[1768346409958,25.2,146.55,146.53,13.14319229]
[1768346410679,25.2,146.55,146.53,7.54767717]
[1768346410873,25.2,146.55,146.53,19.96767717]
[1768346411177,25.2,146.55,146.54,0.72319229]
[1768346411362,25.2,146.54,146.52,0.72319229]
[1768346411675,31.48001025,146.53,146.51,0.72319229]
[1768346412073,6.82372574,146.55,146.47,0.72319229]
[1768346412074,6.28001025,146.52,146.47,0.72319229]
[1768346412258,6.28001025,146.51,146.48,0.72319229]
[1768346412458,6.28001025,146.52,146.48,0.72319229]
[1768346414382,6.28001025,146.52,146.49,0.72319229]
[1768346414579,6.28001025,146.53,146.49,0.72319229]
[1768346414770,6.28001025,146.54,146.5,0.72319229]
[1768346415171,13.10424725,146.54,146.5,0.72319229]
[1768346415370,6.28001025,146.53,146.5,0.72319229]
[1768346416254,6.28001025,146.52,146.5,0.72319229]
[1768346416686,17.05839963,146.56,146.5,0.72319229]
[1768346416981,11.37683105,146.55,146.51,0.72319229]
[1768346417283,25.2,146.54,146.51,0.72319229]
[1768346418879,6.28001025,146.53,146.49,0.6694661]
[1768346419785,6.28001025,146.51,146.47,7.49666354]
[1768346419977,6.28001025,146.5,146.47,0.6694661]
[1768346420385,6.28001025,146.5,146.47,7.49669467]
[1768346421387,6.82507916,146.52,146.47,7.49669467]
[1768346421682,6.28001025,146.5,146.47,7.49669467]
[1768346422074,6.28001025,146.5,146.47,0.6694661]
[1768346423188,6.28001025,146.51,146.48,0.6694661]
[1768346423504,6.28001025,146.52,146.48,0.6694661]
[1768346423690,13.10508225,146.52,146.48,0.6694661]
[1768346423991,25.2,146.51,146.48,0.6694661]
[1768346424177,31.48001025,146.51,146.48,0.6694661]
[1768346424693,25.2,146.51,146.48,0.6694661]
[1768346425372,31.48001025,146.51,146.48,0.6694661]
[1768346425891,25.2,146.51,146.49,0.6694661]
[1768346426587,6.82475272,146.53,146.49,0.6694661]
[1768346426885,13.10428268,146.54,146.49,0.6694661]
[1768346427066,6.82427243,146.54,146.5,0.6694661]
[1768346427593,6.82427243,146.54,146.51,0.6694661]
[1768346428175,6.82427243,146.54,146.5,6.28001025]
[1768346428373,6.82427243,146.54,146.5,6.94947635]
[1768346429486,6.82427243,146.54,146.51,0.6694661]
[1768346433379,18.70001025,146.55,146.51,0.6694661]
[1768346433581,6.28001025,146.55,146.51,0.6694661]
[1768346433789,6.28001025,146.56,146.52,0.6694661]
[1768346435298,13.10332669,146.56,146.52,0.6694661]
[1768346436001,6.28001025,146.55,146.52,0.6694661]
[1768346436895,13.10376497,146.55,146.52,0.6694661]
[1768346437096,6.28001025,146.54,146.52,0.6694661]
[1768346438205,6.82267858,146.57,146.52,0.6694661]
[1768346438385,6.28001025,146.54,146.52,0.6694661]
[1768346439899,6.28001025,146.56,146.52,0.6694661]
[1768346440094,6.28001025,146.56,146.52,6.82486375]
[1768346440298,6.28001025,146.56,146.53,0.67250913]
[1768346441906,6.28001025,146.56,146.52,7.49737288]
[1768346443522,6.28001025,146.56,146.53,0.67250913]
[1768346445216,6.28001025,146.56,146.52,0.67250913]
[1768346447813,32.02286307,146.57,146.52,7.49742395]
[1768346448008,6.28001025,146.56,146.52,7.49742395]